Cogmind - Beta 17.1 @@@ ROGUE MODE // 2026.09.13 @ 14:06:01 Player: MOPO3 Result: Destroyed by B-86 Titan with Railgun Performance ------------- Evolutions (7) 3500 Regions Visited (9) 1800 Robots Destroyed (141) 705 Value Destroyed (4231) 4231 Prototype IDs (26) 520 Alien Tech Used (0) 0 Bonus (441) 441 TOTAL SCORE: 11197 Bonus ------- High Alert Combat Kills 79 Follower Combat Kills 362 Cogmind --------- Core Integrity 0/1300 Matter 240/300 Energy 97/100 System Corruption 18% Temperature Cool (9) Movement Core (50) Location -3/Research Parts ------- > --- POWER (2) -------- (None) > --- PROPULSION (6) --- (None) > --- UTILITY (11) ----- (None) > --- WEAPON (2) ------- (None) > --- INVENTORY (5) ---- (None) Peak State ------------ > --- POWER ------------ Improved Deuterium Engine F-cell Engine > --- PROPULSION ------- Airjet Flightbrick > --- UTILITY ---------- Huge Storage Unit Improved Matter Compressor Gravity Neutralizer Improved Sensor Array Advanced Signal Interpreter Advanced Melee Analysis Suite Core Analyzer Improved Actuator Array Hardened Medium Armor Plating Hacking Suite > --- WEAPON ----------- Heavy Mace Heavy Flail > --- INVENTORY -------- Deuterium Engine Airjet Airjet Airjet Airjet Airjet Improved Gravmag System Improved Gravmag System Improved Gravmag System Improved Gravmag System Improved Gravmag System Improved Heat Sink Improved Sensor Array Terrain Scanner Advanced Melee Analysis Suite Force Booster Hardened Medium Armor Plating Improved Light Armor Plating Improved Medium Armor Plating Improved Shield Generator Remote Shield Hammer Heavy Flail [Rating: 105] Favorites ----------- Power Light Ion Engine Engine Light Ion Engine Power Core Light Nuclear Core Reactor Heavy Antimatter Reactor Propulsion Spiked Treads Treads Spiked Treads Wheel Wheel Hover Unit Improved Gravmag System Flight Unit Flightbrick Utility Huge Storage Unit Device V3-11A's Pendant Storage Huge Storage Unit Processor Advanced Melee Analysis Suite Hackware Hacking Suite Protection Hardened Medium Armor Plating Weapon Hammer Energy Cannon Compact HERF Cannon Ballistic Gun Gauss Rifle Ballistic Cannon Light Cannon Launcher Subdweller Shrapnel Launcher Impact Weapon Hammer Slashing Weapon Greatsword Build | -11 -10 -10 -10 -8 -7 -6 -5 -4 -3 ------- Run | Yrd Mat Min Sub Mat Fac Fac Fac Fac Res Slots Evolved 14 | . . . . 4 2 2 2 2 2 Power 1 | . . . . . . . 1 . . Propulsion 4 | . . . . 1 1 1 . . 1 Utility 9 | . . . . 3 1 1 1 2 1 Weapon . | . . . . . . . . . . Parts Attached 136 | 9 13 . 8 17 12 17 4 36 20 Power 21 | 1 2 . 1 3 2 1 2 4 5 Engine 9 | 1 2 . 1 2 1 1 1 . . Core 5 | . . . . 1 1 . 1 . 2 Reactor 7 | . . . . . . . . 4 3 Propulsion 37 | 4 2 . 2 2 1 5 . 15 6 Treads 9 | 2 2 . 2 2 . 1 . . . Leg . | . . . . . . . . . . Wheel 2 | 2 . . . . . . . . . Hover 20 | . . . . . . 4 . 15 1 Flight 6 | . . . . . 1 . . . 5 Utility 54 | 2 5 . 2 6 6 8 2 15 8 Device 27 | 1 1 . 2 2 2 3 1 10 5 Storage 7 | 1 4 . . . . . 1 . 1 Processor 6 | . . . . . 2 2 . 2 . Hackware 4 | . . . . 1 . 1 . . 2 Protection 10 | . . . . 3 2 2 . 3 . Artifact . | . . . . . . . . . . Weapon 24 | 2 4 . 3 6 3 3 . 2 1 Energy Gun . | . . . . . . . . . . Energy Cannon 1 | . . . . . . . . . 1 Ballistic Gun 7 | 2 1 . . 2 2 . . . . Ballistic Cannon 6 | . 2 . 1 3 . . . . . Launcher 3 | . 1 . 1 . . 1 . . . Special Weapon . | . . . . . . . . . . Impact Weapon 5 | . . . 1 1 1 2 . . . Slashing Weapon 2 | . . . . . . . . 2 . Piercing Weapon . | . . . . . . . . . . Special Melee Weapon . | . . . . . . . . . . Unidentified Prototypes 10 | . . . 1 1 . 2 1 3 2 Parts Lost 59 | . 3 . 4 3 4 . . 21 24 Power 8 | . 1 . 1 . 1 . . 2 3 Propulsion 19 | . 2 . 1 . . . . 8 8 Utility 26 | . . . 1 2 1 . . 10 12 Weapon 6 | . . . 1 1 2 . . 1 1 Highest Loss Streak 11 | . 1 . 2 2 2 . . 9 11 To Critical Strikes 1 | . . . . . . . . 1 . Average Backups 18 | 3 11 16 18 20 24 24 24 21 3 Power 1 | . 1 2 1 1 . 1 1 1 2 Propulsion 4 | 2 1 1 2 5 11 10 10 6 . Utility 4 | . 1 4 3 3 3 8 10 11 . Weapon 8 | . 6 8 11 10 8 4 2 1 . Tool/Special . | . . . . . . . . . . Unused Backups 53 | . 9 . 7 10 4 14 . 8 1 Power 4 | . . . . 2 . 1 . 1 . Propulsion 13 | . 1 . 1 1 2 5 . 3 . Utility 12 | . . . 1 2 1 3 . 4 1 Weapon 22 | . 7 . 4 5 1 5 . . . Tool/Special 2 | . 1 . 1 . . . . . . Average Slot Usage (%) 92 | . 99 100 99 89 74 81 83 93 63 Engine 9 | . 13 14 13 8 4 5 9 1 . Treads 20 | . 27 28 27 26 . 2 . . . Hover 2 | . . . . . . 2 5 25 12 Flight 1 | . . . . . 5 5 5 . 6 Device 13 | . 14 14 14 6 15 13 14 22 16 Storage 10 | . 14 14 14 9 6 5 5 4 2 Processor 3 | . . . . . 8 14 15 10 9 Hackware 2 | . . . . 8 6 5 5 4 3 Protection 4 | . . . . 10 11 10 10 6 1 Ballistic Cannon 7 | . 22 28 2 15 . . . . . Launcher 5 | . . . 12 . . . . . . Impact Weapon 7 | . . . 12 2 4 9 10 3 . Peak Build Rating 105 | 7 8 9 19 33 76 95 105 105 103 Average Rating 37 | 5 7 8 17 29 71 86 102 94 77 On Entrance 43 | . 7 8 9 19 33 71 93 105 93 Avg Prop Armor Cover (%) 3 | . . . 10 . . 3 1 . 7 Naked Turns 12 | . . . . . . . . . 12 Heaviest Build 147 | 12 90 52 94 116 117 115 135 147 64 Greatest Support 73 | 40 40 40 40 60 60 36 36 73 71 Greatest Overweight (x) 5 | . 2 1 5 2 4 4 3 3 2 Average Overweight (x) 1 | . . 1 1 1 3 3 3 1 . Largest Inventory Capacity 25 | 8 25 20 25 25 25 25 25 25 10 Average Capacity 23 | 7 17 20 24 25 25 25 25 23 7 Most Carried 25 | 5 15 18 25 25 25 25 25 25 5 Average Carried 22 | 3 11 16 24 24 24 24 24 21 3 Final Capacity 25 | 8 20 20 25 25 25 25 25 5 5 Final Carried 25 | 5 15 18 25 24 25 25 25 1 . Class Distribution -------------------- 63% | Mutant 15% | Gladiator 13% | Scavenger-Mutant Dominant Class ---------------- Mutant | -10/Materials Mutant | -10/Mines Mutant | -10/Subcaves Scavenger-Mutant | -8/Materials Mutant | -7/Factory Gladiator | -6/Factory Gladiator | -5/Factory Gladiator | -4/Factory Scavenger-Gladiator | -3/Research Resources | -11 -10 -10 -10 -8 -7 -6 -5 -4 -3 ----------- Run | Yrd Mat Min Sub Mat Fac Fac Fac Fac Res Matter Collected 4008 | 392 493 194 207 953 701 99 238 556 175 Remotely . | . . . . . . . . . . Salvage Created 5216 | 159 484 185 258 1004 1268 99 185 1181 393 Parts 263 | 12 40 9 13 44 73 3 9 48 12 Haulers Intercepted 10 | . 2 . . 5 . . . 3 . Recyclers Shooed 6 | . 2 . . 1 2 . . . 1 Parts Field Recycled . | . . . . . . . . . . Retrieved Matter . | . . . . . . . . . . Parts Self-Destructed 21 | . . . 21 . . . . . . Prevented . | . . . . . . . . . . Parts Restored . | . . . . . . . . . . Kills | -11 -10 -10 -10 -8 -7 -6 -5 -4 -3 ------- Run | Yrd Mat Min Sub Mat Fac Fac Fac Fac Res Combat Hostiles Destroyed 91 | . 16 5 6 22 20 2 3 13 4 Melee 23 | . . . . 1 5 1 2 10 4 Guns 16 | . 1 . . 1 14 . . . . Cannons 33 | . 11 5 3 14 . . . . . AOE 11 | . 4 . 3 4 . . . . . Classes Destroyed 16 | 3 6 . 2 2 3 . . . . Worker 14 | 2 . 1 . 5 5 . . 1 . Builder 7 | . 1 . . 4 2 . . . . Tunneler 3 | 2 . . . . . 1 . . . Hauler 10 | . 2 . . 5 . . . 3 . Recycler 8 | 1 . 1 . 3 2 . . . 1 Mechanic 1 | . . . . . 1 . . . . Operator 2 | . 1 . . 1 . . . . . Turret 1 | . . . 1 . . . . . . Watcher 4 | . 2 . . 1 . . . 1 . Swarmer 24 | . 5 3 3 7 4 . . . 2 Grunt 38 | . 11 2 . 8 9 . 2 4 2 Sentry 9 | . . . . 4 3 . 1 1 . Specialist 3 | . . . . 3 . . . . . Hunter 1 | . . . . . 1 . . . . Programmer 13 | . . . . . 3 2 . 8 . Subdweller 3 | . . . 3 . . . . . . Best Kill Streak 8 | 2 6 3 3 6 8 1 2 3 3 Combat Bots Only 5 | . 4 3 3 5 5 1 2 2 3 Max Kills in Single Turn 3 | 1 2 2 3 2 2 1 1 1 1 Gunslinging 1 | . . . . . 1 . . . . Exploded 3 | . 2 . 3 2 . . . . . Melee 1 | . . . . 1 1 1 1 1 1 Uniques/NPCs Destroyed . | . . . . . . . . . . Combat | -11 -10 -10 -10 -8 -7 -6 -5 -4 -3 -------- Run | Yrd Mat Min Sub Mat Fac Fac Fac Fac Res Hostile Shots Fired 1010 | . 82 44 33 149 197 12 32 212 249 Missed 312 | . 23 15 13 35 58 4 9 43 112 Hits 698 | . 59 29 20 114 139 8 23 169 137 Melee 22 | . . . . . . . 2 . 20 Projectile 676 | . 59 29 20 114 139 8 21 169 117 AOE 3 | . . . . . . . . 1 2 Critical Strikes 38 | . 1 . . 3 2 1 3 12 16 Part Disruptions 2 | . . . . . . . . 1 1 Damage Taken 11316 | . 666 244 310 1437 1719 122 501 3151 3166 Core 2029 | . 43 53 20 143 92 . 12 362 1304 Absorbed by Shields 875 | . . . . 110 . . . 628 137 Regen/Repaired (Parts) 534 | . 85 . . 158 . 26 . 265 . Core Remaining (%) 82 | 100 . . 53 74 86 100 98 68 . Volleys Fired 248 | 32 49 20 10 77 60 . . . . Largest 2 | 2 2 2 2 2 2 . . . . Hottest 66 | 40 60 60 60 66 56 . . . . Shots Fired 478 | 64 91 40 18 150 115 . . . . Gun 195 | 64 14 . . 8 109 . . . . Cannon 270 | . 70 40 16 138 6 . . . . Launcher 13 | . 7 . 2 4 . . . . . Special . | . . . . . . . . . . Kinetic 471 | 64 84 40 18 150 115 . . . . Thermal . | . . . . . . . . . . Explosive 7 | . 7 . . . . . . . . Electromagnetic . | . . . . . . . . . . Robot Hit Streak 20 | 8 5 4 13 20 13 . . . . Robot Miss Streak 8 | 3 4 8 2 4 3 . . . . Penetration Max 1 | . . . . . 1 . . . . Secondary Targets 5 | . . . . . 5 . . . . Max Gunslinging Chain 1 | . . . . . 1 . . . . Shots Hit Robots 423 | 39 40 16 28 122 94 8 11 54 11 Core Hits 162 | 9 22 8 9 45 43 1 2 16 7 Critical Kills 3 | . . . . . 1 . 2 . . Critical Parts Destroyed 12 | . . . 3 2 2 1 1 3 . Critical Strikes 40 | . 5 3 6 7 3 1 3 12 . Destroy 1 | . . . . . 1 . . . . Blast 14 | . 5 3 1 5 . . . . . Smash 17 | . . . 5 2 2 1 3 4 . Sever 8 | . . . . . . . . 8 . Melee Attacks 346 | . . . 104 34 43 27 20 101 17 Impact 279 | . . . 104 34 43 27 20 51 . Slashing 67 | . . . . . . . . 50 17 Piercing . | . . . . . . . . . . Sneak Attacks 22 | . . . 2 7 3 2 . 7 1 Combat Hostiles 4 | . . . . . 1 1 . 1 1 Follow-up Attacks 6 | . . . . . . 1 4 1 . Damage Inflicted 13324 | 408 1024 365 1174 3105 2235 511 507 3197 798 Guns 2109 | 408 75 . . 67 1559 . . . . Cannons 3362 | . 636 365 198 2039 124 . . . . Explosions 870 | . 312 . 294 264 . . . . . Melee 6812 | . . . 682 702 552 511 507 3171 687 Ramming 171 | . 1 . . 33 . . . 26 111 Kinetic 6029 | 408 711 365 492 2370 1683 . . . . Thermal . | . . . . . . . . . . Explosive 312 | . 312 . . . . . . . . Electromagnetic . | . . . . . . . . . . Impact 4492 | . . . 682 702 552 511 507 1538 . Slashing 2320 | . . . . . . . . 1633 687 Piercing . | . . . . . . . . . . Highest Corruption 31 | . . . . . 3 2 . 31 18 Average Corruption 6 | . . . . . 2 1 . 8 12 Corruption Purged 2 | . . . . . . 2 . . . Corruption Blocked . | . . . . . . . . . . Effects 66 | . . . . . 18 . . 34 14 Message Errors 13 | . . . . . 3 . . 10 . Matter Fused 10 | . . . . . 1 . . 8 1 Heat Flow Errors 5 | . . . . . 3 . . 2 . Energy Discharges 11 | . . . . . 3 . . 4 4 Parts Rejected 1 | . . . . . . . . 1 . Parts Fused 1 | . . . . . . . . 1 . Data Loss (minor) 12 | . . . . . 6 . . 4 2 Data Loss (major) 1 | . . . . . 1 . . . . Misfires 1 | . . . . . 1 . . . . Alerts 1 | . . . . . . . . 1 . Misdirections 10 | . . . . . . . . 3 7 Overload Shots . | . . . . . . . . . . Overflow Damage 1429 | . 50 . 205 256 83 276 54 419 86 Projectiles 7 | . 6 . . 1 . . . . . Explosions 101 | . 44 . 39 18 . . . . . Melee 1321 | . . . 166 237 83 276 54 419 86 Knockbacks 71 | . 11 10 6 20 7 3 2 12 . Impact 24 | . . . 4 3 1 3 2 11 . Kinetic 43 | . 10 10 2 16 5 . . . . Secondary 4 | . 1 . . 1 1 . . 1 . Self-Inflicted Damage 189 | . 29 . . 59 . . . 12 89 Shots 2 | . 1 . . 1 . . . . . Rammed 8 | . 1 . . 1 . . . 3 3 Targets Rammed 8 | . 1 . . 1 . . . 3 3 Kicked . | . . . . . . . . . . Crushed . | . . . . . . . . . . Highest Temperature 417 | . 36 24 . 417 227 . 17 148 11 Average Temperature 71 | . 10 16 . 112 46 . 9 39 4 Received Heat Transfer 1906 | . 159 33 126 519 549 . 135 254 131 Effects 1 | . . . . 1 . . . . . Short Circuit 1 | . . . . 1 . . . . . Siege Activations . | . . . . . . . . . . Martial Activations . | . . . . . . . . . . Shielding Activations . | . . . . . . . . . . Robots Disrupted . | . . . . . . . . . . Combat Hostiles . | . . . . . . . . . . Robots Corrupted 15 | . . . 3 4 1 1 1 5 . Combat Hostiles 11 | . . . 3 2 1 1 1 3 . Parts Fried 21 | . . . 3 9 . 3 . 6 . Impact Corruptions 47 | . . . 4 14 3 9 1 16 . Robots Melted . | . . . . . . . . . . Combat Hostiles . | . . . . . . . . . . Parts Melted . | . . . . . . . . . . Heat Transferred . | . . . . . . . . . . Parts Sabotaged . | . . . . . . . . . . Parts Stolen . | . . . . . . . . . . Parts Stripped . | . . . . . . . . . . Power Chain Reactions . | . . . . . . . . . . Alert | -11 -10 -10 -10 -8 -7 -6 -5 -4 -3 ------- Run | Yrd Mat Min Sub Mat Fac Fac Fac Fac Res Maximum Alert Level 2 | . . . . 2 1 . . . . Low Security (%) 83 | 100 100 100 . 60 54 100 100 100 100 Level 1 11 | . . . . 21 45 . . . . Level 2 4 | . . . . 17 . . . . . Level 3 . | . . . . . . . . . . Level 4 . | . . . . . . . . . . Level 5 . | . . . . . . . . . . High Security . | . . . . . . . . . . Max Security . | . . . . . . . . . . Peak Influence 506 | 5 152 104 . 506 397 188 40 60 125 Initial 224 | . . . . . 224 188 . . 23 Average 88 | . 46 19 . 179 201 29 5 14 35 Influence Increases 3999 | 25 536 145 213 1316 731 104 84 492 353 Destroy 0b10 Robot/C 2100 | . 320 100 160 680 400 40 60 260 80 Destroy 0b10 Robot/NC 275 | 25 30 10 . 125 50 5 . 25 5 Destroy Leader 496 | . 68 20 10 210 100 20 10 58 . Allied During Kill 126 | . . . 13 113 . . . . . Successful Hack 197 | . 30 . . 27 67 24 4 14 31 Select Force Hacks 60 | . 30 . . 30 . . . . . Disable Machine 60 | . 15 . . 15 . . . 30 . Destroy Structure 235 | . 28 . . 86 24 15 10 60 12 Partial Spotted 15 | . . . . . . . . . 15 Lose Combat Pursuer 435 | . 15 15 30 30 90 . . 45 210 Influence Decreases 3960 | 25 536 98 260 821 841 489 84 447 359 Entered New Map 515 | . . . 25 . 271 197 . . 22 Time Decay 2471 | 25 279 98 165 535 530 292 84 302 161 Lost Part 431 | . 30 . 10 30 40 . . 145 176 Lost Ally 166 | . . . 60 106 . . . . . Purge Threat 377 | . 227 . . 150 . . . . . Squads Dispatched 37 | . 3 . . 8 11 4 2 4 5 Investigation 13 | . 2 . . 4 4 1 1 . 1 Extermination 12 | . . . . . 3 3 . 4 2 Reinforcement 9 | . 1 . . 4 1 . 1 . 2 Assault . | . . . . . . . . . . Garrison 3 | . . . . . 3 . . . . Intercept . | . . . . . . . . . . Searches Triggered . | . . . . . . . . . . Construction Impeded 1 | . . . . . 1 . . . . Haulers Reinforced . | . . . . . . . . . . Active Scanning Responses . | . . . . . . . . . . Cargo Convoy Interrupts . | . . . . . . . . . . Stealth | -11 -10 -10 -10 -8 -7 -6 -5 -4 -3 --------- Run | Yrd Mat Min Sub Mat Fac Fac Fac Fac Res Distress Signals 7 | . 2 . . 4 . . . . 1 Communications Jammed . | . . . . . . . . . . Distress Signals . | . . . . . . . . . . Times Spotted 204 | . 26 5 19 44 27 3 10 27 43 Peak Tracking Total 19 | . 8 3 3 5 5 2 4 8 19 Tactical Retreats 15 | . 1 1 2 2 3 . . 1 5 Traps | -11 -10 -10 -10 -8 -7 -6 -5 -4 -3 ------- Run | Yrd Mat Min Sub Mat Fac Fac Fac Fac Res Traps Triggered 10 | . . . 1 1 1 . 1 1 5 Indirectly . | . . . . . . . . . . Trap Hack Attempts . | . . . . . . . . . . Triggered . | . . . . . . . . . . Disarmed . | . . . . . . . . . . Reprogrammed . | . . . . . . . . . . Reused . | . . . . . . . . . . Traps Extracted . | . . . . . . . . . . Installed . | . . . . . . . . . . Triggered . | . . . . . . . . . . Machines | -11 -10 -10 -10 -8 -7 -6 -5 -4 -3 ---------- Run | Yrd Mat Min Sub Mat Fac Fac Fac Fac Res Machines Disabled 10 | . 1 . 6 1 . . . 2 . Max in Single Turn 1 | . 1 . 1 . . . . 1 . Garrison Access 2 | . . . . 1 . . . 1 . Machines Repaired . | . . . . . . . . . . Machines Dismantled . | . . . . . . . . . . Machines Sabotaged . | . . . . . . . . . . Overloaded Fab Kills . | . . . . . . . . . . Hacking | -11 -10 -10 -10 -8 -7 -6 -5 -4 -3 --------- Run | Yrd Mat Min Sub Mat Fac Fac Fac Fac Res Machines Accessed 60 | . 7 . 4 13 7 4 5 11 9 Terminals 27 | . 5 . . 9 3 1 3 3 3 Fabricators 5 | . . . . . 3 2 . . . Repair Stations 7 | . 1 . . 1 . 1 . 3 1 Recycling Units 8 | . 1 . . 1 . . 1 2 3 Scanalyzers 5 | . . . . 1 1 . 1 1 1 Garrison Access 4 | . . . . 1 . . . 2 1 Total Hacks 176 | . 30 . 17 43 20 8 16 25 17 Successful 110 | . 18 . 17 32 9 5 14 10 5 Failed 64 | . 11 . . 11 11 3 2 14 12 Catastrophic 9 | . 2 . . 1 3 . . 2 1 Database Lockouts 2 | . 1 . . . . . . 1 . Manual 76 | . 25 . . 25 7 2 4 8 5 Terminals 87 | . 26 . . 28 8 2 10 8 5 Fabricators 13 | . . . . . 9 4 . . . Repair Stations 18 | . 2 . . 4 . 2 . 8 2 Recycling Units 18 | . 2 . . 4 . . 3 2 7 Scanalyzers 17 | . . . . 6 3 . 3 3 2 Garrison Access 6 | . . . . 1 . . . 4 1 Terminal Hacks 36 | . 5 . 17 8 . . 6 . . Record 22 | . . . 14 3 . . 5 . . Part Schematic 2 | . 1 . . 1 . . . . . Prototype ID Bank 1 | . . . . 1 . . . . . Open Door 1 | . . . 1 . . . . . . Open DSF 1 | . . . . . . . 1 . . Branch Access Points 1 | . 1 . . . . . . . . Terminal Index 2 | . 1 . . 1 . . . . . Scanalyzer Index 1 | . . . . 1 . . . . . Unreport Threat 3 | . 2 . . 1 . . . . . Proto ID Catalog 1 | . . . 1 . . . . . . Release Object 1 | . . . 1 . . . . . . Fabricator Hacks 9 | . . . . . 6 3 . . . Load Schematic 5 | . . . . . 3 2 . . . Build 4 | . . . . . 3 1 . . . Repair Station Hacks 14 | . 2 . . 4 . 2 . 5 1 Scan Component 8 | . 1 . . 2 . 1 . 3 1 Repair 6 | . 1 . . 2 . 1 . 2 . Recycling Unit Hacks 9 | . 1 . . 2 . . 2 1 3 Report Inventory 6 | . 1 . . 1 . . 1 1 2 Retrieve Matter 1 | . . . . . . . . . 1 Retrieve Components 2 | . . . . 1 . . 1 . . Scanalyzer 10 | . . . . 5 . . 3 1 1 Insert Component 1 | . . . . 1 . . . . . Analyze 1 | . . . . 1 . . . . . Retrieve Study 8 | . . . . 3 . . 3 1 1 Garrison Access Hacks 2 | . . . . 1 . . . 1 . Seal Access 2 | . . . . 1 . . . 1 . Unauthorized Hacks 29 | . 10 . . 12 3 . 2 2 . Terminals 27 | . 9 . . 11 3 . 2 2 . Botnet 21 | . 5 . . 9 3 . 2 2 . Skim 6 | . 4 . . 2 . . . . . Fabricators . | . . . . . . . . . . Repair Stations . | . . . . . . . . . . Recycling Units 2 | . 1 . . 1 . . . . . Tunnel 2 | . 1 . . 1 . . . . . Scanalyzers . | . . . . . . . . . . Garrison Access . | . . . . . . . . . . Data Cores Recovered . | . . . . . . . . . . Used . | . . . . . . . . . . Hacking Detections 48 | . 6 . . 11 7 4 4 8 8 Full Trace Events 11 | . 1 . . 4 3 1 1 . 1 Feedback Events . | . . . . . . . . . . Feedback Blocked . | . . . . . . . . . . Robot Schematics Acquired . | . . . . . . . . . . Robots Built . | . . . . . . . . . . Authchips . | . . . . . . . . . . Time . | . . . . . . . . . . Total Robot Build Rating . | . . . . . . . . . . Part Schematics Acquired 3 | . 1 . . 2 . . . . . Parts Built 8 | . . . . . 6 2 . . . Authchips . | . . . . . . . . . . Time 144 | . . . . . 108 36 . . . Total Part Build Rating 24 | . . . . . 18 6 . . . Part Studies Acquired 8 | . . . . 3 . . 3 1 1 Parts Repaired 6 | . 1 . . 2 . 1 . 2 . Time 203 | . 26 . . 58 . 25 . 94 . Parts Recycled . | . . . . . . . . . . Recycled Matter . | . . . . . . . . . . Retrieved Matter . | . . . . . . . . . . Retrieved Components 11 | . . . . 9 . . 2 . . Parts Scanalyzed 1 | . . . . 1 . . . . . Part Schematics Acquired 1 | . . . . 1 . . . . . Parts Damaged . | . . . . . . . . . . Bothacking | -11 -10 -10 -10 -8 -7 -6 -5 -4 -3 ------------ Run | Yrd Mat Min Sub Mat Fac Fac Fac Fac Res Used RIF Installer . | . . . . . . . . . . Robots Hacked . | . . . . . . . . . . Non-combat . | . . . . . . . . . . Combat . | . . . . . . . . . . Robot Hacks Applied . | . . . . . . . . . . Relay Couplers Released . | . . . . . . . . . . Fabnet Peak Effective % . | . . . . . . . . . . Robots Rewired . | . . . . . . . . . . Allies Hacked . | . . . . . . . . . . Hacks Repelled . | . . . . . . . . . . Allies | -11 -10 -10 -10 -8 -7 -6 -5 -4 -3 -------- Run | Yrd Mat Min Sub Mat Fac Fac Fac Fac Res Total Allies 13 | . . . 13 . . . . . . Largest Group 9 | . . . 9 9 . . . . . Highest-Rated Group 171 | . . . 171 171 . . . . . Highest-Rated Ally 19 | . . . 19 19 . . . . . Total Orders . | . . . . . . . . . . Ally Attacks 131 | . . . 26 105 . . . . . Total Damage 2005 | . . . 678 1327 . . . . . Kills 24 | . . . 6 18 . . . . . Allies Corrupted . | . . . . . . . . . . Allies Melted . | . . . . . . . . . . Intel | -11 -10 -10 -10 -8 -7 -6 -5 -4 -3 ------- Run | Yrd Mat Min Sub Mat Fac Fac Fac Fac Res Active Infowar (turns) 7691 | 11 1380 1464 104 . 1360 1381 543 1448 . Sensors 4706 | . . . . . 1360 1381 543 1422 . Terrain 1404 | . . . . . 896 508 . . . Traps 1 | . . . . . . . . 1 . Seismic 2959 | 11 1380 1464 104 . . . . . . T.N.C. 2 | . . . . . . . . 2 . Cloaking 944 | . . . . . . . . 944 . Robot Analysis Total . | . . . . . . . . . . Derelict Logs Recovered 4 | . . 1 3 . . . . . . Drone Launches . | . . . . . . . . . . Drone Recoveries . | . . . . . . . . . . Exploration | -11 -10 -10 -10 -8 -7 -6 -5 -4 -3 ------------- Run | Yrd Mat Min Sub Mat Fac Fac Fac Fac Res Turns Passed 20516 | 237 1380 1464 8521 3228 1490 1381 543 1837 435 Spaces Moved 7666 | 116 555 497 2384 1131 526 576 263 955 663 Core 20 | 3 . . . . . . . . 17 Treads 4569 | 48 555 497 2328 1131 10 . . . . Legs . | . . . . . . . . . . Wheels 121 | 65 . . 56 . . . . . . Hover 1241 | . . . . . . . . 951 290 Flight 1715 | . . . . . 516 576 263 4 356 Fastest Speed 24 | 50 160 240 155 220 200 120 160 46 24 Average Speed 227 | 112 204 240 340 237 200 191 160 137 45 Slowest Speed 360 | 160 320 240 360 360 220 220 160 226 155 Overloaded Moves . | . . . . . . . . . . Propulsion Burnouts . | . . . . . . . . . . Robots Hopped 26 | . . . . . . . . . 26 Potential Cave-ins . | . . . . . . . . . . Cave-ins Triggered 1 | . . . . . . . . 1 . Exploration Rate (%) 43 | 7 74 98 97 79 12 13 6 27 26 Regions Visited 9 Branch Regions 2 Pre-discovered Areas 6 | . 1 . 4 1 . . . . . Known Exits Taken 4 | . 1 . . . . 1 1 1 . Unknown Exits Taken 5 | 1 . 1 1 1 1 . . . . Scrap Searched 16 | . . 3 13 . . . . . . Spaces Dug 109 | . . . 25 7 22 15 5 30 5 Terrain Destroyed 211 | . 24 . 41 68 22 15 5 30 6 Melee 109 | . . . 25 7 22 15 5 30 5 Projectile 15 | . . . . 15 . . . . . AOE 86 | . 24 . 16 46 . . . . . Terrain Rammed 1 | . . . . . . . . . 1 Walls Destroyed 1 | . . . . . . . . . 1 Machines Disabled . | . . . . . . . . . . Actions | -11 -10 -10 -10 -8 -7 -6 -5 -4 -3 --------- Run | Yrd Mat Min Sub Mat Fac Fac Fac Fac Res Total 9696 | 161 710 729 2609 1463 780 824 358 1331 731 Wait 928 | . 54 210 57 136 106 141 62 158 4 Move 7613 | 115 554 496 2383 1130 525 575 262 954 619 Hop 18 | . . . . . . . . . 18 Pick Up 161 | 5 22 3 25 26 17 26 6 26 5 Fast Attach 59 | 7 2 . . 4 4 11 3 14 14 Attach 61 | . 1 . 4 8 5 5 2 29 7 Detach 3 | . . . . . . 2 . . 1 Swap 60 | 2 11 . 7 19 8 4 . 5 4 Drop 159 | . 16 . 19 25 12 35 7 38 7 Fire 248 | 32 49 20 10 77 60 . . . . Melee 339 | . . . 104 34 43 25 16 100 17 Ram 7 | . . . . . . . . 3 4 Kick . | . . . . . . . . . . Crush 2 | . 1 . . 1 . . . . . Escape Stasis 35 | . . . . . . . . 4 31 Rewire . | . . . . . . . . . . Trap . | . . . . . . . . . . Miscellaneous 3 | . . . . 3 . . . . . Route ------- -11/Scrapyard -10/Materials (discovered 3 exits: [*Mat x2] / *Min) -10/Mines (discovered 3 exits: [*Mat x2] / *Sub) -10/Subcaves (discovered 3 exits: *Mat x2 / [*Rec]) -8/Materials (discovered 2 exits: *Fac x2) -7/Factory -6/Factory (discovered 2 exits: *Fac / *Ext) -5/Factory -4/Factory -3/Research History --------- Turn | Location | Event 16 | -11/Scrapyard | Discovered new exit (range 16) 238 | -11/Scrapyard | Entered Materials 305 | -10/Materials | Build established: Mutant 649 | -10/Materials | Repaired Lgt. Cannon 691 | -10/Materials | Identified exit to Mines 691 | -10/Materials | Central database locked down 742 | -10/Materials | Discovered new exit (range 16) 1350 | -10/Materials | Discovered new exit (range 10) 1618 | -10/Materials | Entered Mines 1647 | -10/Mines | Discovered new exit (range 5) 1882 | -10/Mines | Found a hidden stash of uninstalled traps 1926 | -10/Mines | Learned 2 Materials zone layouts 1930 | -10/Mines | Discovered new exit (range 6) 2920 | -10/Mines | Discovered new exit (range 5) 3082 | -10/Mines | Entered Subcaves 3432 | -10/Subcaves | Visited triangular shrine 3447 | -10/Subcaves | Found Prototype Device 3447 | -10/Subcaves | Identified V3-11A's Pendant 3452 | -10/Subcaves | Befriended Subdweller 3627 | -10/Subcaves | Befriended Subdweller 3627 | -10/Subcaves | Befriended Subdweller 3738 | -10/Subcaves | Discovered new exit (range 16) 3742 | -10/Subcaves | Lost 3 allies 3816 | -10/Subcaves | Learned location of Zion (-6) 3816 | -10/Subcaves | Met a Zionite searching for "candidates" 3825 | -10/Subcaves | Discovered new exit (range 6) 4175 | -10/Subcaves | Visited 4L-MR0's lab 4233 | -10/Subcaves | Found Flightbrick 4664 | -10/Subcaves | Approached by friendly Subdweller 4907 | -10/Subcaves | Befriended Subdweller 6522 | -10/Subcaves | Befriended Subdweller 6537 | -10/Subcaves | Befriended Subdweller 7067 | -10/Subcaves | Befriended Subdweller 7275 | -10/Subcaves | Discovered new exit (range 9) 7277 | -10/Subcaves | Befriended Subdweller 8175 | -10/Subcaves | Shifting Twisted Machinery released Battle Cannon 8175 | -10/Subcaves | Shifting Twisted Machinery released Battle Rifle 8805 | -10/Subcaves | Visited Clippyterm 8816 | -10/Subcaves | Learned location of Deep Caves (-6) 8917 | -10/Subcaves | Befriended Subdweller 8917 | -10/Subcaves | Befriended Subdweller 9602 | -10/Subcaves | Befriended Subdweller 10302 | -10/Subcaves | Befriended Subdweller 11603 | -10/Subcaves | Entered Materials 11603 | -8/Materials | Accompanied by 9 allies 11603 | -8/Materials | Evolved 4 slots: Propulsion x1, Utility x3 11906 | -8/Materials | Build established: Scavenger-Mutant 12555 | -8/Materials | Repaired Lgt. Treads+ 12589 | -8/Materials | Repaired Spk. Treads 12753 | -8/Materials | Discovered new exit (range 9) 13009 | -8/Materials | Lost 4 allies 14693 | -8/Materials | Build established: Mutant 14699 | -8/Materials | Discovered new exit (range 7) 14831 | -8/Materials | Entered Factory 14831 | -7/Factory | Evolved 2 slots: Propulsion x1, Utility x1 14856 | -7/Factory | Attached Flightbrick, gained temporary slots: Utility x3 15232 | -7/Factory | Fabricated Airjet? 15356 | -7/Factory | Fabricated Airjet? 15515 | -7/Factory | Garrison activated, responded to threat 16071 | -7/Factory | Discovered new exit (range 14) 16094 | -7/Factory | Build established: Scavenger-Assassin 16137 | -7/Factory | Fabricated Airjet (x2) 16321 | -7/Factory | Entered another Factory area 16321 | -6/Factory | Evolved 2 slots: Propulsion x1, Utility x1 16673 | -6/Factory | Discovered new exit (range 16) 16871 | -6/Factory | Build established: Gladiator 16887 | -6/Factory | Identified exit to Extension 17085 | -6/Factory | Fabricated Airjet (x2) 17517 | -6/Factory | Discovered new exit (range 7) 17528 | -6/Factory | Identified exit to Factory 17570 | -6/Factory | Repaired Imp. Gravmag System 17702 | -6/Factory | Entered another Factory area 17702 | -5/Factory | Evolved 2 slots: Power x1, Utility x1 17853 | -5/Factory | Identified exit to DSF 18166 | -5/Factory | Discovered new exit (range 3) 18169 | -5/Factory | Identified exit to Factory 18245 | -5/Factory | Entered another Factory area 18245 | -4/Factory | Evolved 2 slots: Utility x2 18388 | -4/Factory | Repaired Neutrino Core 18573 | -4/Factory | Repaired Hrd. Medium Armor Plating 19672 | -4/Factory | System corruption reached 10% 19742 | -4/Factory | Lost 9 parts (1p4n3u1w) 19860 | -4/Factory | Central database locked down 19992 | -4/Factory | Lost 4 parts (1n3u) 20004 | -4/Factory | Crushed by falling debris 20032 | -4/Factory | System corruption reached 30% 20076 | -4/Factory | Discovered new exit (range 15) 20081 | -4/Factory | Identified exit to Research 20082 | -4/Factory | Entered Research 20082 | -3/Research | Evolved 2 slots: Propulsion x1, Utility x1 20098 | -3/Research | Lost 6 parts (1p3n2u) 20254 | -3/Research | Build established: Scavenger-Gladiator 20262 | -3/Research | Lost 4 parts (1p1n2u) 20396 | -3/Research | System corruption reached 10% 20445 | -3/Research | Lost 11 parts (2p3n5u1w) 20465 | -3/Research | Spotted B-86 Titan 20486 | -3/Research | Core integrity fell below 50% 20511 | -3/Research | Core integrity fell below 20% 20517 | -3/Research | Destroyed by B-86 Titan with Railgun Last Messages --------------- 20485_ P-80 Master resets R-10 Processor, system corruption cleaned. 20485_ R-10 Processor collects Electron Diverter. 20485_ Antigrav System+ severed. 20487_ P-80 Master resets P-80 Master, system corruption cleaned. 20491_ P-80 Master resets S-43 Plague, system corruption cleaned. 20491_ Electron Diverter destroyed. 20492_ Particle Reactor severed. 20493_ Slug penetrates Wall. 20496_ Neutrino Core severed. 20498_ Field Propulsion Array destroyed. 20500_ Electron Diverter severed. 20501_ Acquired Electron Diverter. 20502_ System corrupted: Energy discharge (-24). 20504_ Electron Diverter destroyed. 20510_ Slammed into R-10 Processor. 20511_ Slammed into C-35 Carver. 20514_ Slug penetrates Wall. 20514_ Penetrated by Slug. 20514_ Com. HERF Cannon severed. 20517_ Knocked back. Map ----- +----------------------------------------------------+ | ?????????????????????????????????????????????????? | | ?????????????????????????????????????????????????? | | ?????????????????????????????????????????????????? | | ?????????????????????????????????????????????????? | | ?????????????????????????????????????????????????? | | ?????????????????????????????????????????????????? | | ?????????????????????????????????????????????????? | | ?????????????????????????????????????????????????? | | ?????????????????????????????????????????????????? | | ?????????????????????????????????????????????????? | | ????????????????????????############?????????????? | | ????????????????????????# ##"####??????????? | | ????????????????????????# # #??????????? | | ????????????????????????# # #??????????? | | ????????????????????????# # #??????????? | | ????????????????????????# # #??????????? | | ??????????????????# ????####/#### #####??????? | | ??????????????????# ???????# * / ** # #??????? | | ??????????????????# ???????# #### / #??????? | | ??????????## ###??# ######## #??# # #??????? | | ???????? ??# ] #??# # #??????? | | ???????? ### #####s##?# # #??????? | | ????????? ####c;;#;;;;#### #??????? | | ?????????? # sc #?# #??????? | | ???????????# =# #?# #??????? | | ???????????# # @ #?# #??????? | | ???????????# # % BB ### ##?????? | | ???????????# # BB ## #?????? | | ???????????# #p ## #?????? | | ???????????# /pm k + #?????? | | ???????????+ %# ## #?????? | | ???????????##### # ## #?????? | | ????????????#"" != # #### ######### | | ????????????#"F != ; #??# # | | ????????????#"""!= + #??# # | | ????????????#""" ;################ # | | ????????????#### #??????# # # | | ???????????????# #??????# # ##/###### | | ?????????????###+###/#"####?????# / = | | ?????????????# #?????# # ###### | | ?????????????# #?????# # #????? | | ?????????????# #?????# # #???## | | ?????????????# #?????#####+## #?? "" | | ?????????????# ]! ########### ## "" | | ?????????????# ]]! + / "" | | ?????????????# ]] ############## ## | | ?????????????#"S ########### ## ##?? | | ?????????????#""" # # T#? | | ?????????????# "" # # # | | ????????????# #?"" # ## | +----------------------------------------------------+ Best States ------------- Heat Dissipation 103 Energy Generation 41 Energy Capacity 725 Matter Stores 300 Matter Capacity 300 Sight Range 16 Robot Scan Range 16 Terrain Scan Range 14 Terrain Scan Density 85 Cloak Strength 2 Additional Mass Support 12 Armor Coverage 1025 Melee Speed Boost 20 Evasion (%) 65 Melee Accuracy 13 Core Analysis 6 Recoil Reduction 3 Force Boost 20 Offensive Hacking 20 Item Schematics ----------------- Sml. Storage Unit | -10/Materials | Hacked Battle Cannon | -8/Materials | Scanalyzed Airjet | -8/Materials | Hacked Robot Schematics ------------------ None Fabricated ------------ Airjet | x2 | -7/Factory Airjet | x2 | -7/Factory Airjet | x2 | -7/Factory Airjet | x2 | -6/Factory Repaired ---------- Lgt. Cannon | 29% | -10/Materials Lgt. Treads | 50% | -8/Materials Spk. Treads | 56% | -8/Materials Imp. Gravmag System | 48% | -6/Factory Neutrino Core | 14% | -4/Factory Hrd. Medium Armor Plating | 23% | -4/Factory Studied --------- Lgt. Treads | -8/Materials | Hacked Imp. Light Cannon | -8/Materials | Hacked Lgt. Cannon | -8/Materials | Hacked Imp. Gravmag System | -5/Factory | Hacked Airjet | -5/Factory | Hacked Linear Gravjet | -5/Factory | Hacked Antigrav System | -4/Factory | Hacked Cmb. Gravmag System | -3/Research | Hacked Alien Tech Used ----------------- None Achievements -------------- Mistaken Identity SUBSUB Survival Of The Most Covered Challenges ------------ None Game ------ Seed ImprovedCloakNukerbomber Manual? 0 Play Time 02:35:28 Cumulative 21.9 hours Start 2026.09.13 @ 10:03:50 End 2026.09.13 @ 14:06:01 Sessions 1 Manual Loads 0 Difficulty Rogue Special Mode None Game No. 23 Rogue 23 Adventurer 0 Explorer 0 Win Type - Total 1 Types 1/0/0/0/0/0/0/0/0/0 Lore% 13 Gallery% 25 Achievement% 25 Wizard Run 0 Options --------- Layout 0 ASCII 0 Keyboard 0 Movement Numpad Keybinds 0 Fullscreen 1 Font 18/Terminus Map View 76x50 Zoom Use 0% Tactical HUD 1 Map Filters NONE Filters NONE Steam 1 RUN: d941f9dc-4147-48dd-ac14-c8719cddac21